Cogmind - Beta 16 @@@ ROGUE MODE // 2025.11.11 @ 13:39:24 Player: ClassActJerk Result: Destroyed by G-47 Trooper with Particle Gun Performance ------------- Evolutions (2) 1000 Regions Visited (4) 800 Robots Destroyed (24) 120 Value Destroyed (854) 854 Prototype IDs (1) 20 Alien Tech Used (0) 0 Bonus (200) 200 TOTAL SCORE: 2994 Bonus ------- Pacifist 200 Cogmind --------- Core Integrity 0/550 Matter 300/300 Energy 56/100 System Corruption 3% Temperature Cool (9) Movement Core (200) Ox3 Location -8/Storage Parts ------- > --- POWER (2) -------- (None) > --- PROPULSION (3) --- (None) > --- UTILITY (4) ------ Medium Storage Unit > --- WEAPON (2) ------- (None) > --- INVENTORY (10) --- Ion Cannon Peak State ------------ > --- POWER ------------ Light Deuterium Engine Light Deuterium Engine > --- PROPULSION ------- Armored Wheel Armored Wheel Armored Wheel > --- UTILITY ---------- Small Storage Unit Reaction Control System Improved Propulsion Shielding Shield Generator > --- WEAPON ----------- Improved Medium Laser Light Cannon > --- INVENTORY -------- Wheel Wheel Armored Wheel Armored Wheel Medium Laser Particle Gun Improved Medium Laser [Rating: 26] Favorites ----------- Power Light Deuterium Engine Engine Light Deuterium Engine Propulsion Armored Wheel Treads Light Treads Wheel Armored Wheel Utility Small Storage Unit Device Weight Redist. System Storage Small Storage Unit Processor Targeting Computer Hackware Hacking Suite Protection Light Armor Plating Weapon Light Cannon Energy Gun Improved Medium Laser Ballistic Cannon Light Cannon Build | -11 -10 -9 -8 -8 ------- Run | Yrd Mat Mat Mat Sto Slots Evolved 4 | . . 2 2 . Power 1 | . . . 1 . Propulsion 1 | . . . 1 . Utility 2 | . . 2 . . Weapon . | . . . . . Parts Attached 38 | 6 1 11 7 13 Power 5 | 1 . 2 1 1 Engine 5 | 1 . 2 1 1 Core . | . . . . . Reactor . | . . . . . Propulsion 9 | 2 . 2 1 4 Treads 2 | 2 . . . . Leg . | . . . . . Wheel 7 | . . 2 1 4 Hover . | . . . . . Flight . | . . . . . Utility 15 | 1 1 5 4 4 Device 6 | . . 4 1 1 Storage 3 | 1 . . 1 1 Processor 1 | . . 1 . . Hackware 1 | . . . 1 . Protection 4 | . 1 . 1 2 Artifact . | . . . . . Weapon 9 | 2 . 2 1 4 Energy Gun 7 | 2 . . 1 4 Energy Cannon . | . . . . . Ballistic Gun . | . . . . . Ballistic Cannon 2 | . . 2 . . Launcher . | . . . . . Special Weapon . | . . . . . Impact Weapon . | . . . . . Slashing Weapon . | . . . . . Piercing Weapon . | . . . . . Special Melee Weapon . | . . . . . Unidentified Prototypes 1 | . . . 1 . Parts Lost 22 | . . . 5 17 Power 3 | . . . 2 1 Propulsion 7 | . . . . 7 Utility 6 | . . . 2 4 Weapon 6 | . . . 1 5 Highest Loss Streak 11 | . . . 5 11 To Critical Strikes 1 | . . . . 1 Average Backups 4 | 1 2 4 6 4 Power . | . 1 1 . . Propulsion . | . . . 2 1 Utility . | . . . . . Weapon 2 | . 1 2 3 2 Tool/Special . | . . . . . Unused Backups 2 | . . . . 2 Power . | . . . . . Propulsion 1 | . . . . 1 Utility . | . . . . . Weapon 1 | . . . . 1 Tool/Special . | . . . . . Average Slot Usage (%) 81 | . 97 78 96 77 Engine 10 | . 14 10 16 7 Treads 8 | . 28 12 . . Wheel 10 | . . . 27 25 Device 14 | . . 19 16 6 Storage 11 | . 14 11 10 10 Processor 1 | . . 2 . . Protection 5 | . 11 2 6 10 Energy Gun 8 | . 28 4 3 17 Ballistic Cannon 10 | . . 16 14 . Peak Build Rating 26 | 6 7 17 26 18 Average Rating 13 | 4 6 10 23 15 On Entrance 8 | . 6 7 17 14 Avg Prop Armor Cover (%) . | . . . . . Naked Turns . | . . . . . Heaviest Build 26 | 11 14 18 26 26 Greatest Support 42 | 40 40 40 42 36 Greatest Overweight (x) 5 | . . 5 . 4 Average Overweight (x) . | . . . . . Largest Inventory Capacity 10 | 8 8 8 8 10 Average Capacity 8 | 6 8 8 8 9 Most Carried 8 | 5 3 8 8 8 Average Carried 4 | 2 2 4 6 4 Final Capacity 10 | 8 8 8 8 10 Final Carried 8 | 2 3 7 8 1 Class Distribution -------------------- 87% | Mutant 12% | Scavenger-Mutant Dominant Class ---------------- Mutant | -10/Materials Mutant | -9/Materials Mutant | -8/Materials Mutant | -8/Storage Resources | -11 -10 -9 -8 -8 ----------- Run | Yrd Mat Mat Mat Sto Matter Collected 785 | 227 . 47 142 369 Remotely . | . . . . . Salvage Created 961 | . . 47 119 795 Parts 46 | . . 1 11 34 Haulers Intercepted . | . . . . . Recyclers Shooed 1 | . . . . 1 Parts Field Recycled . | . . . . . Retrieved Matter . | . . . . . Parts Self-Destructed . | . . . . . Prevented . | . . . . . Parts Restored . | . . . . . Kills | -11 -10 -9 -8 -8 ------- Run | Yrd Mat Mat Mat Sto Combat Hostiles Destroyed 21 | . . 1 5 15 Guns 13 | . . 1 . 12 Cannons 5 | . . . 5 . Classes Destroyed 7 | . . 1 5 1 Worker 2 | . . . 1 1 Builder 1 | . . . 1 . Swarmer 3 | . . . 3 . Grunt 9 | . . 1 . 8 Brawler 2 | . . . . 2 Sentry 6 | . . . 1 5 Hunter 1 | . . . 1 . Best Kill Streak 6 | . . 1 6 5 Combat Bots Only 5 | . . 1 3 5 Max Kills in Single Turn 1 | . . 1 1 1 Gunslinging . | . . . . . Exploded . | . . . . . Melee . | . . . . . Uniques/NPCs Destroyed . | . . . . . Combat | -11 -10 -9 -8 -8 -------- Run | Yrd Mat Mat Mat Sto Hostile Shots Fired 246 | . 9 8 87 142 Missed 57 | . 1 2 18 36 Hits 189 | . 8 6 69 106 Melee 4 | . . . . 4 Projectile 185 | . 8 6 69 102 Critical Strikes 12 | . . . 6 6 Damage Taken 2590 | . 87 64 772 1667 Core 568 | . 10 . 163 395 Absorbed by Shields 135 | . . 4 131 . Redirected to Shielding 103 | . . . 103 . Regen/Repaired (Parts) 320 | . . . . 320 Core Remaining (%) 98 | 100 96 100 . . Volleys Fired 79 | . . 3 25 51 Largest 2 | . . 2 2 2 Hottest 121 | . . 80 86 121 Shots Fired 154 | . . 6 50 98 Gun 114 | . . 6 10 98 Cannon 40 | . . . 40 . Launcher . | . . . . . Special . | . . . . . Kinetic 40 | . . . 40 . Thermal 111 | . . 3 10 98 Explosive . | . . . . . Electromagnetic 3 | . . 3 . . Robot Hit Streak 15 | . . 3 10 15 Robot Miss Streak 3 | . . . 2 3 Penetration Max . | . . . . . Secondary Targets 1 | . . . . 1 Max Gunslinging Chain 1 | . . . . 1 Shots Hit Robots 101 | . . 3 31 67 Core Hits 41 | . . 2 10 29 Critical Kills . | . . . . . Critical Parts Destroyed . | . . . . . Critical Strikes 10 | . . . . 10 Burn 10 | . . . . 10 Melee Attacks . | . . . . . Impact . | . . . . . Slashing . | . . . . . Piercing . | . . . . . Sneak Attacks . | . . . . . Combat Hostiles . | . . . . . Follow-up Attacks . | . . . . . Damage Inflicted 1750 | . . 35 551 1164 Guns 1334 | . . 35 135 1164 Cannons 416 | . . . 416 . Explosions . | . . . . . Melee . | . . . . . Ramming . | . . . . . Kinetic 416 | . . . 416 . Thermal 1310 | . . 11 135 1164 Explosive . | . . . . . Electromagnetic 24 | . . 24 . . Impact . | . . . . . Slashing . | . . . . . Piercing . | . . . . . Highest Corruption 3 | . . . . 3 Average Corruption 3 | . . . . 3 Corruption Purged . | . . . . . Corruption Blocked . | . . . . . Effects 11 | . . . . 11 Message Errors 2 | . . . . 2 Matter Fused 4 | . . . . 4 Data Loss (major) 3 | . . . . 3 Misfires 2 | . . . . 2 Overload Shots . | . . . . . Overflow Damage . | . . . . . Projectiles . | . . . . . Explosions . | . . . . . Melee . | . . . . . Knockbacks 4 | . . . 4 . Impact . | . . . . . Kinetic 4 | . . . 4 . Secondary . | . . . . . Self-Inflicted Damage . | . . . . . Shots . | . . . . . Rammed . | . . . . . Targets Rammed . | . . . . . Kicked . | . . . . . Crushed . | . . . . . Highest Temperature 439 | . . 66 284 439 Average Temperature 141 | . . 33 78 170 Received Heat Transfer 1146 | . 48 30 222 846 Effects 7 | . . . . 7 Shutdowns 2 | . . . . 2 Energy Bleed 2 | . . . . 2 Interference 1 | . . . . 1 Matter Decay 1 | . . . . 1 Damage (minor) 1 | . . . . 1 Siege Activations . | . . . . . Martial Activations . | . . . . . Shielding Activations . | . . . . . Robots Disrupted . | . . . . . Combat Hostiles . | . . . . . Robots Corrupted . | . . . . . Combat Hostiles . | . . . . . Parts Fried . | . . . . . Impact Corruptions . | . . . . . Robots Melted 3 | . . . . 3 Combat Hostiles 3 | . . . . 3 Parts Melted 16 | . . . . 16 Heat Transferred 3762 | . . 25 296 3441 Parts Sabotaged . | . . . . . Parts Stolen . | . . . . . Parts Stripped . | . . . . . Power Chain Reactions . | . . . . . Alert | -11 -10 -9 -8 -8 ------- Run | Yrd Mat Mat Mat Sto Maximum Alert Level . | . . . . . Low Security (%) 100 | 100 100 100 100 100 Level 1 . | . . . . . Level 2 . | . . . . . Level 3 . | . . . . . Level 4 . | . . . . . Level 5 . | . . . . . High Security . | . . . . . Max Security . | . . . . . Peak Influence 180 | . . 20 85 180 Initial 8 | . . . . 8 Average 29 | . . . 33 95 Influence Increases 640 | . . 20 140 480 Destroy 0b10 Robot/C 420 | . . 20 100 300 Destroy 0b10 Robot/NC 15 | . . . 10 5 Destroy Leader 120 | . . . 30 90 Successful Hack 10 | . . . . 10 Disable Machine 15 | . . . . 15 Partial Spotted 30 | . . . . 30 Lose Combat Pursuer 30 | . . . . 30 Influence Decreases 603 | . . 20 120 463 Entered New Map 12 | . . . . 12 Time Decay 391 | . . 20 90 281 Lost Part 200 | . . . 30 170 Squads Dispatched 5 | . 1 . 1 3 Investigation 4 | . . . 1 3 Extermination . | . . . . . Reinforcement 1 | . 1 . . . Assault . | . . . . . Garrison . | . . . . . Intercept . | . . . . . Searches Triggered . | . . . . . Construction Impeded . | . . . . . Haulers Reinforced . | . . . . . Active Scanning Responses . | . . . . . Cargo Convoy Interrupts . | . . . . . Stealth | -11 -10 -9 -8 -8 --------- Run | Yrd Mat Mat Mat Sto Distress Signals . | . . . . . Communications Jammed . | . . . . . Distress Signals . | . . . . . Times Spotted 42 | . 5 4 9 24 Peak Tracking Total 6 | . 4 3 4 6 Tactical Retreats 1 | . . . . 1 Traps | -11 -10 -9 -8 -8 ------- Run | Yrd Mat Mat Mat Sto Traps Triggered 5 | . . 4 1 . Indirectly . | . . . . . Trap Hack Attempts . | . . . . . Triggered . | . . . . . Disarmed . | . . . . . Reprogrammed . | . . . . . Reused . | . . . . . Traps Extracted . | . . . . . Installed . | . . . . . Triggered . | . . . . . Machines | -11 -10 -9 -8 -8 ---------- Run | Yrd Mat Mat Mat Sto Machines Disabled 1 | . . . . 1 Max in Single Turn 1 | . . . . 1 Machines Repaired . | . . . . . Machines Dismantled . | . . . . . Machines Sabotaged . | . . . . . Overloaded Fab Kills . | . . . . . Hacking | -11 -10 -9 -8 -8 --------- Run | Yrd Mat Mat Mat Sto Machines Accessed 3 | . . . . 3 Terminals 2 | . . . . 2 Fabricators . | . . . . . Repair Stations 1 | . . . . 1 Recycling Units . | . . . . . Scanalyzers . | . . . . . Garrison Access . | . . . . . Total Hacks 10 | . . . . 10 Successful 6 | . . . . 6 Failed 4 | . . . . 4 Catastrophic 2 | . . . . 2 Database Lockouts . | . . . . . Manual 10 | . . 9 1 . Terminals 6 | . . . . 6 Fabricators . | . . . . . Repair Stations 4 | . . . . 4 Recycling Units . | . . . . . Scanalyzers . | . . . . . Garrison Access . | . . . . . Terminal Hacks 2 | . . . . 2 Record 1 | . . . . 1 Extermination Status 1 | . . . . 1 Fabricator Hacks . | . . . . . Repair Station Hacks 4 | . . . . 4 Scan Component 2 | . . . . 2 Repair 2 | . . . . 2 Recycling Unit Hacks . | . . . . . Scanalyzer . | . . . . . Garrison Access Hacks . | . . . . . Unauthorized Hacks . | . . . . . Terminals . | . . . . . Fabricators . | . . . . . Repair Stations . | . . . . . Recycling Units . | . . . . . Scanalyzers . | . . . . . Garrison Access . | . . . . . Data Cores Recovered . | . . . . . Used . | . . . . . Hacking Detections 4 | . . 1 . 3 Full Trace Events 3 | . . . . 3 Feedback Events . | . . . . . Feedback Blocked . | . . . . . Robot Schematics Acquired . | . . . . . Robots Built . | . . . . . Authchips . | . . . . . Time . | . . . . . Total Robot Build Rating . | . . . . . Part Schematics Acquired . | . . . . . Parts Built . | . . . . . Authchips . | . . . . . Time . | . . . . . Total Part Build Rating . | . . . . . Part Studies Acquired . | . . . . . Parts Repaired 2 | . . . . 2 Time 77 | . . . . 77 Parts Recycled . | . . . . . Recycled Matter . | . . . . . Retrieved Matter . | . . . . . Retrieved Components . | . . . . . Parts Scanalyzed . | . . . . . Part Schematics Acquired . | . . . . . Parts Damaged . | . . . . . Bothacking | -11 -10 -9 -8 -8 ------------ Run | Yrd Mat Mat Mat Sto Used RIF Installer . | . . . . . Robots Hacked . | . . . . . Non-combat . | . . . . . Combat . | . . . . . Robot Hacks Applied . | . . . . . Relay Couplers Released . | . . . . . Fabnet Peak Effective % . | . . . . . Robots Rewired . | . . . . . Allies Hacked . | . . . . . Hacks Repelled . | . . . . . Allies | -11 -10 -9 -8 -8 -------- Run | Yrd Mat Mat Mat Sto Total Allies . | . . . . . Largest Group . | . . . . . Highest-Rated Group . | . . . . . Highest-Rated Ally . | . . . . . Total Orders . | . . . . . Ally Attacks . | . . . . . Total Damage . | . . . . . Kills . | . . . . . Allies Corrupted . | . . . . . Allies Melted . | . . . . . Intel | -11 -10 -9 -8 -8 ------- Run | Yrd Mat Mat Mat Sto Active Infowar (turns) . | . . . . . Robot Analysis Total . | . . . . . Derelict Logs Recovered . | . . . . . Drone Launches . | . . . . . Drone Recoveries . | . . . . . Exploration | -11 -10 -9 -8 -8 ------------- Run | Yrd Mat Mat Mat Sto Turns Passed 2627 | 79 112 1446 279 711 Spaces Moved 1390 | 63 69 720 209 329 Core 68 | 31 . 33 . 4 Treads 745 | 32 69 644 . . Legs . | . . . . . Wheels 577 | . . 43 209 325 Hover . | . . . . . Flight . | . . . . . Fastest Speed 50 | 50 160 90 90 86 Average Speed 129 | 105 160 158 90 89 Slowest Speed 300 | 160 160 300 90 250 Overloaded Moves . | . . . . . Propulsion Burnouts . | . . . . . Robots Hopped . | . . . . . Potential Cave-ins . | . . . . . Cave-ins Triggered . | . . . . . Exploration Rate (%) 24 | 4 17 39 21 40 Regions Visited 4 Branch Regions 1 Pre-discovered Areas . | . . . . . Known Exits Taken . | . . . . . Unknown Exits Taken 4 | 1 1 1 1 . Scrap Searched . | . . . . . Spaces Dug . | . . . . . Terrain Destroyed . | . . . . . Melee . | . . . . . Projectile . | . . . . . AOE . | . . . . . Terrain Rammed . | . . . . . Walls Destroyed . | . . . . . Machines Disabled . | . . . . . Actions | -11 -10 -9 -8 -8 --------- Run | Yrd Mat Mat Mat Sto Total 2064 | 74 71 1019 251 649 Wait 508 | . . 265 . 243 Move 1386 | 62 68 719 208 329 Hop . | . . . . . Pick Up 40 | 6 2 17 6 9 Fast Attach 5 | 2 . 1 2 . Attach 37 | 4 1 13 5 14 Detach 1 | . . . 1 . Swap 1 | . . . . 1 Drop 7 | . . 1 4 2 Fire 79 | . . 3 25 51 Melee . | . . . . . Ram . | . . . . . Kick . | . . . . . Crush . | . . . . . Escape Stasis . | . . . . . Rewire . | . . . . . Trap . | . . . . . Miscellaneous . | . . . . . Route ------- -11/Scrapyard -10/Materials -9/Materials -8/Materials -8/Storage History --------- Turn | Location | Event 23 | -11/Scrapyard | Discovered new exit (range 15) 80 | -11/Scrapyard | Entered Materials 171 | -10/Materials | Discovered new exit (range 13) 192 | -10/Materials | Entered another Materials area 192 | -9/Materials | Evolved 2 slots: Utility x2 308 | -9/Materials | Build established: Mutant 1604 | -9/Materials | Discovered new exit (range 5) 1638 | -9/Materials | Entered another Materials area 1638 | -8/Materials | Evolved 2 slots: Power x1, Propulsion x1 1877 | -8/Materials | Discovered new exit (range 12) 1917 | -8/Materials | Entered Storage 1945 | -8/Storage | Lost 5 parts (2p2u1w) 2112 | -8/Storage | Lost 4 parts (2n1u1w) 2157 | -8/Storage | Core integrity fell below 50% 2424 | -8/Storage | Repaired Med. Storage Unit 2477 | -8/Storage | Repaired Imp. Medium Laser 2614 | -8/Storage | Core integrity fell below 20% 2628 | -8/Storage | Destroyed by G-47 Trooper with Particle Gun Last Messages --------------- 02602_ System corrupted: Substantial component data lost. 02602_ Imp. Medium Laser destroyed. 02602_ Critical hit (Burn: +37). 02602_ Particle Gun destroyed. 02604_ Arm. Wheel destroyed. 02607_ Wheel destroyed. 02610_ Arm. Wheel destroyed. 02610_ G-47 Trooper destroyed. 02610_ Switching to secondary target: Y-45 Defender. 02612_ Heat Sink destroyed. 02614_ O-16 Technician: "IFF HANDSHAKE FAILED. SECURING TERMINAL." 02616_ Med. Laser destroyed. 02618_ G-47 Trooper suffers critical hit (Burn). 02620_ Beam Rifle destroyed. 02620_ G-47 Trooper destroyed. 02622_ R-06 Scavenger collects Imp. Heat Sink. 02628_ R-06 Scavenger collects Particle Gun. Map ----- +----------------------------------------------------+ | #????????????????????????????????????????????????? | | #????????????????????????????????????????????????? | | #??????????#####?????????????????????????????????? | | #??????????#"""#?????? ??????????????????????????? | | #????????###"T"####??? ??????????????????????????? | | ?????????# #??? ??????????????????????????? | | ????????## """"#??? ??????????????????????????? | | ????????#" """"#??+#??????????????????????????? | | ##??????#T """"#?? ##?????????????????????????? | | #??????#" """"#?? ??????????????????????????? | | #??????## #?? ??????????????????????????? | | #???????# #?? ??????????????????????????? | | #???????# #?? #??????????????????????????? | | #???????# #?# #??????????????????????????? | | #############+###### ##?????????????????????????? | | #####?????????????????????? | | +?????????????????????? | | ####??????????????????????? | | ##+#+############+## #?????????????????????????? | | # #?????????# #?????????????????????????? | | % %""""" #?????????# #?????????????????????????? | | # """" ##????????# #?????????????????????????? | | # """"" "#????????# #?????????????????????????? | | # % T#????????# % #?????????????????????????? | | #""" % "#????????# ###########???????????????? | | #"R = ##????????# rr @ o ????????? | | #""" #?????????# gg ????????? | | # #?????????# ^ ????????? | | ##########?????????#####+#########+#####?????????? | | ?????????????????????????????????????????????????? | | ?????????????????????????????????????????????????? | | ?????????????????????????????????????????????????? | | ?????????????????????????????????????????????????? | | ?????????????????????????????????????????????????? | | ?????????????????????????????????????????????????? | | ?????????????????????????????????????????????????? | | ?????????????????????????????????????????????????? | | ?????????????????????????????????????????????????? | | ?????????????????????????????????????????????????? | | ?????????????????????????????????????????????????? | | ?????????????????????????????????????????????????? | | | | | | | | | | | | | | | | | | | +----------------------------------------------------+ Best States ------------- Heat Dissipation 41 Energy Generation 23 Energy Capacity 380 Matter Stores 300 Matter Capacity 300 Sight Range 16 Terrain Scan Density 10 Additional Mass Support 6 Armor Coverage 300 Resistance: EM 15 Propulsion Shielding 66 Evasion (%) 50 Targeting Accuracy 5 Recoil Reduction 2 Item Schematics ----------------- None Robot Schematics ------------------ None Fabricated ------------ Nothing Repaired ---------- Med. Storage Unit | 1% | -8/Storage Imp. Medium Laser | 17% | -8/Storage Studied --------- None Alien Tech Used ----------------- None Achievements -------------- None Challenges ------------ None Game ------ Seed BattleMicrowarpHumpback Manual? 0 Play Time 00:20:52 Cumulative 21.4 hours Start 2025.11.11 @ 13:20:39 End 2025.11.11 @ 13:39:24 Sessions 1 Manual Loads 0 Difficulty Rogue Special Mode None Game No. 64 Rogue 64 Adventurer 0 Explorer 0 Win Type - Total 0 Types 0/0/0/0/0/0/0/0/0/0 Lore% 6 Gallery% 19 Achievement% 14 Wizard Run 0 Options --------- Layout 1 ASCII 0 Keyboard 0 Movement Mouse Keybinds 0 Fullscreen 1 Font 24/Terminus Map View 50x35 Zoom Use 0% Tactical HUD 1 Map Filters NONE Filters NONE Steam 1 RUN: 49734075-a026-4aec-812a-dfbc8692cea1